[Event "European Womens-ch 2025"]
[Site "Rhodes"]
[Date "2025.04.03"]
[Round "4.16"]
[White "Stefanova, Antoaneta"]
[Black "Velikic, Adela"]
[Result "0-1"]
[Annotator "RC"]
[ECO "A13"]
[WhiteElo "2426"]
[BlackElo "2214"]
[PlyCount "148"]
[EventDate "2025.03.29"]
[EventType "swiss"]
[EventCountry "GRE"]
[SourceTitle "playchess.com"]
[Source "ChessBase"]
[SourceQuality "1"]
[TimeControl "40/5400+30:1800+30"]

1. Nf3 {[%emt 0:02:05]} d5 {[%emt 0:00:08]} 2. e3 {[%emt 0:00:10]} Nf6 {[%emt 0:01:34]} 3. c4 {[%emt 0:01:20]} e6 {[%emt 0:00:36]} 4. Nc3 {[%emt 0:09:57]} Be7 {[%emt 0:03:31]} 5. b3 {[%emt 0:05:48]} O-O {[%emt 0:00:58]} 6. Bb2 {[%emt 0:01:19]} b6 {[%emt 0:06:20]} 7. d4 {[%emt 0:17:45]} Bb7 {[%emt 0:03:09]} 8. Rc1 {[%emt 0:02:54]} Nbd7 {[%emt 0:10:19]} 9. Bd3 {[%emt 0:03:53]} a6 {[%emt 0:11:19]} 10. O-O {[%emt 0:02:10]} Bd6 {[%emt 0:09:18]} 11. a4 {[%emt 0:12:33]} Re8 {[%emt 0:08:41]} 12. a5 {[%emt 0:01:45]} dxc4 {[%emt 0:08:55]} 13. bxc4 {[%emt 0:02:28]} e5 {[%emt 0:01:55]} 14. Bf5 {[%emt 0:01:31]} exd4 {[%emt 0:11:41]} 15. exd4 {[%emt 0:00:21]} Bb4 {[%emt 0:02:48]} 16. axb6 {[%emt 0:02:08]} Nxb6 {[%emt 0:00:49]} 17. Na2 {[%emt 0:06:04]} Bf8 {[%emt 0:01:02]} 18. d5 {[%emt 0:05:20]} c6 {[%emt 0:09:11]} 19. Bd4 {[%emt 0:02:26]} Nc8 {[%emt 0:06:32]} 20. dxc6 {[%emt 0:14:05]} Bxc6 {[%emt 0:00:03]} 21. Ne5 {[%emt 0:00:30]} Bb7 {[%emt 0:00:52]} 22. Rb1 {[%emt 0:01:28]} Nd6 {[%emt 0:00:55]} 23. Bd3 {[%emt 0:02:30]} Qa5 {[%emt 0:00:47]} 24. Re1 {[%emt 0:01:11]} Rab8 {[%emt 0:00:33]} 25. Nc3 {[%emt 0:00:28]} Ba8 {[%emt 0:00:25]} 26. Rxb8 {[%emt 0:00:40]} Rxb8 {[%emt 0:00:01]} 27. c5 {[%emt 0:00:12]} Nb5 {[%emt 0:00:59]} 28. Nxb5 {[%emt 0:00:46]} axb5 {[%emt 0:00:03]} 29. Qb1 {[%emt 0:00:34]} Rd8 {[%emt 0:00:40]} 30. Be3 {[%emt 0:00:14]} Qc3 {[%emt 0:00:51]} 31. Qa1 {[%emt 0:00:52]} b4 {[%emt 0:00:33]} 32. Rc1 {[%emt 0:00:21]} Qxa1 {[%emt 0:00:24]} 33. Rxa1 {[%emt 0:00:00]} Nd5 {[%emt 0:00:13]} 34. Bd4 {[%emt 0:01:05]} Nf4 {[%emt 0:00:47]} 35. Bf1 {[%emt 0:00:32]} Bxg2 {[%emt 0:00:36]} 36. Bxg2 {[%emt 0:00:22]} Ne2+ {[%emt 0:00:29]} 37. Kf1 {[%emt 0:00:23]} Nxd4 {[%emt 0:00:03]} 38. c6 {[%emt 0:00:31]} Bd6 {[%emt 0:00:33]} 39. f4 {[%emt 0:00:38]} g6 {[%emt 0:00:53]} 40. Bd5 {[%emt 0:00:00]} Bxe5 {[%emt 0:00:00]} 41. fxe5 {[%emt 0:00:35]} Kg7 {[%emt 0:20:54]} 42. Rc1 {[%emt 0:10:00]} b3 {[%emt 0:04:03]} 43. Be4 {[%emt 0:00:59]} b2 {[%emt 0:04:51]} 44. Rb1 {[%emt 0:00:19]} Rc8 {[%emt 0:00:59]} 45. Rxb2 {[%emt 0:01:38]} Nxc6 {[%emt 0:00:06]} 46. Rb5 {[%emt 0:00:48]} Nd4 {[%emt 0:00:33]} 47. Rb4 {[%emt 0:00:49]} Ne6 {[%emt 0:00:55]} 48. Rb5 {[%emt 0:02:06]} Rc5 {[%emt 0:01:18]} 49. Rxc5 {[%emt 0:00:05]} Nxc5 {[%emt 0:00:02]} 50. Bd5 {[%emt 0:00:07]} Kf8 {[%emt 0:00:57]} 51. Ke2 {[%emt 0:00:19]} Nd7 {[%emt 0:00:20]} 52. e6 {[%emt 0:00:06]} Nb6 {[%emt 0:00:09]} 53. Bb3 {[%emt 0:00:12]} f6 {[%emt 0:00:12]} 54. h4 {[%emt 0:00:45]} Ke7 {[%emt 0:00:53]} 55. h5 {[%emt 0:00:07]} Na8 {[%emt 0:00:30]} 56. Bc2 {[%emt 0:00:55]} f5 {[%emt 0:00:29]} 57. Kf3 {[%emt 0:00:33]} Nc7 {[%emt 0:01:37]} 58. Kf4 {[%emt 0:00:36]} Kf6 {[%emt 0:00:32]} 59. e7 {[%emt 0:00:21]} Ne6+ {[%emt 0:00:13]} 60. Kg3 {[%emt 0:00:20]} Kxe7 {[%emt 0:00:06]} 61. Bb3 {[%emt 0:00:43]} Kf6 {[%emt 0:01:07]} 62. hxg6 {[%emt 0:00:13]} hxg6 {[%emt 0:00:03]} 63. Bc4 {[%emt 0:00:11]} g5 {[%emt 0:00:16]} 64. Be2 {[%emt 0:00:07]} Ke5 {[%emt 0:00:17]} 65. Bd1 {[%emt 0:00:05]} Nd4 {[%emt 0:00:32]} 66. Bh5 {[%emt 0:00:08]} Ke4 {[%emt 0:00:30]} 67. Bg6 {[%emt 0:00:32]} Ne2+ {[%emt 0:00:50]} 68. Kf2 {[%emt 0:00:06]} Nf4 {[%emt 0:00:09]} 69. Bh7 {[%emt 0:00:16]} Nd3+ {[%emt 0:00:44]} 70. Kg3 {[%emt 0:00:16]} Ne5 {[%emt 0:00:11]} 71. Kh3 {[%emt 0:00:23]} Kf4 {[%emt 0:00:08]} 72. Bg8 {[%emt 0:00:11]} g4+ {[%emt 0:00:21]} 73. Kh4 {[%emt 0:00:04]} Nf3+ {[%emt 0:00:10]} 74. Kh5 {[%emt 0:00:06]} g3 {[%emt 0:00:19]} 0-1

[Event "European Womens-ch 2025"]
[Site "Rhodes"]
[Date "2025.04.03"]
[Round "4.17"]
[White "Kulon, Klaudia"]
[Black "Jarocka, Liwia"]
[Result "1/2-1/2"]
[Annotator "RC"]
[ECO "C00"]
[WhiteElo "2401"]
[BlackElo "2231"]
[PlyCount "103"]
[EventDate "2025.03.29"]
[EventType "swiss"]
[EventCountry "GRE"]
[SourceTitle "playchess.com"]
[Source "ChessBase"]
[SourceQuality "1"]
[TimeControl "40/5400+30:1800+30"]

1. Nf3 {[%emt 0:02:22]} Nf6 {[%emt 0:00:38]} 2. g3 {[%emt 0:00:06]} d5 {[%emt 0:00:18]} 3. Bg2 {[%emt 0:00:05]} e6 {[%emt 0:00:13]} 4. O-O {[%emt 0:00:17]} c5 {[%emt 0:00:44]} 5. d3 {[%emt 0:00:05]} Nc6 {[%emt 0:00:14]} 6. Nbd2 {[%emt 0:00:21]} Be7 {[%emt 0:03:03]} 7. e4 {[%emt 0:00:17]} O-O {[%emt 0:02:19]} 8. Re1 {[%emt 0:00:25]} b5 {[%emt 0:03:29]} 9. e5 {[%emt 0:00:36]} Nd7 {[%emt 0:00:31]} 10. Nf1 {[%emt 0:00:08]} Qc7 {[%emt 0:14:01]} 11. Bf4 {[%emt 0:01:54]} d4 {[%emt 0:02:56]} 12. h4 {[%emt 0:04:55]} Nb6 {[%emt 0:08:06]} 13. Ng5 {[%emt 0:08:54]} h6 {[%emt 0:16:06]} 14. Ne4 {[%emt 0:00:15]} Nd5 {[%emt 0:02:00]} 15. Nf6+ {[%emt 0:04:49]} Bxf6 {[%emt 0:09:29]} 16. Bxd5 {[%emt 0:03:23]} Be7 {[%emt 0:00:55]} 17. Be4 {[%emt 0:00:14]} Rd8 {[%emt 0:03:59]} 18. Qg4 {[%emt 0:03:38]} Kh8 {[%emt 0:00:37]} 19. Bxh6 {[%emt 0:15:50]} gxh6 {[%emt 0:02:35]} 20. Qf3 {[%emt 0:00:10]} Nxe5 {[%emt 0:03:48]} 21. Qf4 {[%emt 0:02:31]} Kg7 {[%emt 0:01:32]} 22. Bxa8 {[%emt 0:00:38]} Bd6 {[%emt 0:00:07]} 23. Bg2 {[%emt 0:01:00]} Rg8 {[%emt 0:00:53]} 24. Qe4 {[%emt 0:02:56]} f5 {[%emt 0:02:31]} 25. Qe2 {[%emt 0:00:57]} Kh7 {[%emt 0:02:39]} 26. c3 {[%emt 0:03:02]} c4 {[%emt 0:03:32]} 27. cxd4 {[%emt 0:04:43]} Nxd3 {[%emt 0:00:08]} 28. Red1 {[%emt 0:00:12]} Qb6 {[%emt 0:08:13]} 29. Rxd3 {[%emt 0:04:07]} cxd3 {[%emt 0:00:04]} 30. Qxd3 {[%emt 0:00:03]} Rd8 {[%emt 0:00:19]} 31. Rc1 {[%emt 0:00:57]} Bb8 {[%emt 0:04:12]} 32. Rc6 {[%emt 0:02:10]} Qa5 {[%emt 0:00:05]} 33. a3 {[%emt 0:04:22]} Bd7 {[%emt 0:04:07]} 34. b4 {[%emt 0:00:55]} Qa4 {[%emt 0:00:17]} 35. Rc3 {[%emt 0:01:55]} a5 {[%emt 0:00:11]} 36. d5 {[%emt 0:03:35]} e5 {[%emt 0:00:50]} 37. Ne3 {[%emt 0:01:48]} axb4 {[%emt 0:00:21]} 38. axb4 {[%emt 0:00:44]} e4 {[%emt 0:00:18]} 39. Qb1 {[%emt 0:08:57]} Be5 {[%emt 0:00:15]} 40. Rc1 {[%emt 0:00:00]} Kg7 {[%emt 0:00:00]} 41. g4 {[%emt 0:05:05]} fxg4 {[%emt 0:11:07]} 42. Qxe4 {[%emt 0:01:34]} Re8 {[%emt 0:00:51]} 43. Qb1 {[%emt 0:11:45]} g3 {[%emt 0:02:11]} 44. h5 {[%emt 0:05:09]} gxf2+ {[%emt 0:00:50]} 45. Kf1 {[%emt 0:01:01]} Qa3 {[%emt 0:03:45]} 46. Kxf2 {[%emt 0:11:39]} Bg3+ {[%emt 0:04:42]} 47. Kxg3 {[%emt 0:00:04]} Qxe3+ {[%emt 0:00:07]} 48. Kh2 {[%emt 0:00:07]} Qf4+ {[%emt 0:00:14]} 49. Kg1 {[%emt 0:00:16]} Qd4+ {[%emt 0:00:18]} 50. Kh2 {[%emt 0:00:08]} Qh4+ {[%emt 0:00:22]} 51. Kg1 {[%emt 0:00:03]} Qd4+ {[%emt 0:02:23]} 52. Kh2 {[%emt 0:00:04]} 1/2-1/2

[Event "European Womens-ch 2025"]
[Site "Rhodes"]
[Date "2025.04.03"]
[Round "4.18"]
[White "Krasteva, Beloslava"]
[Black "Daulyte-Cornette, Deimante"]
[Result "1/2-1/2"]
[Annotator "RC"]
[ECO "A42"]
[WhiteElo "2257"]
[BlackElo "2389"]
[PlyCount "52"]
[EventDate "2025.03.29"]
[EventType "swiss"]
[EventCountry "GRE"]
[SourceTitle "playchess.com"]
[Source "ChessBase"]
[SourceQuality "1"]
[TimeControl "40/5400+30:1800+30"]

1. d4 {[%emt 0:00:14]} d6 {[%emt 0:00:08]} 2. Nf3 {[%emt 0:02:30]} Nf6 {[%emt 0:00:18]} 3. c4 {[%emt 0:00:15]} g6 {[%emt 0:00:15]} 4. Nc3 {[%emt 0:00:12]} Bg7 {[%emt 0:00:15]} 5. e4 {[%emt 0:00:12]} Bg4 {[%emt 0:00:14]} 6. Be2 {[%emt 0:02:13]} Bxf3 {[%emt 0:00:32]} 7. Bxf3 {[%emt 0:00:48]} e5 {[%emt 0:00:13]} 8. Be3 {[%emt 0:04:41]} Nc6 {[%emt 0:02:20]} 9. d5 {[%emt 0:01:02]} Nd4 {[%emt 0:00:36]} 10. Bxd4 {[%emt 0:02:04]} exd4 {[%emt 0:00:06]} 11. Qxd4 {[%emt 0:01:11]} O-O {[%emt 0:00:32]} 12. Qd2 {[%emt 0:01:30]} Nd7 {[%emt 0:00:44]} 13. O-O {[%emt 0:01:15]} Qf6 {[%emt 0:01:20]} 14. Rae1 {[%emt 0:24:30]} Nc5 {[%emt 0:08:55]} 15. Bd1 {[%emt 0:02:48]} Rfe8 {[%emt 0:02:10]} 16. Bc2 {[%emt 0:01:16]} Re7 {[%emt 0:01:31]} 17. Nd1 {[%emt 0:10:40]} Rae8 {[%emt 0:06:53]} 18. f3 {[%emt 0:00:10]} a5 {[%emt 0:13:41]} 19. Kh1 {[%emt 0:01:21]} b6 {[%emt 0:00:48]} 20. b3 {[%emt 0:01:02]} Qa1 {[%emt 0:02:24]} 21. a4 {[%emt 0:17:58]} Qa2 {[%emt 0:29:34]} 22. Re3 {[%emt 0:01:01]} Bh6 {[%emt 0:03:51]} 23. Qc3 {[%emt 0:02:18]} Bg7 {[%emt 0:10:52]} 24. Qd2 {[%emt 0:00:54]} Bh6 {[%emt 0:00:14]} 25. Qc3 {[%emt 0:00:05]} Bg7 {[%emt 0:07:32]} 26. Qd2 {[%emt 0:01:07]} Bh6 {[%emt 0:00:11]} 1/2-1/2

[Event "European Womens-ch 2025"]
[Site "Rhodes"]
[Date "2025.04.03"]
[Round "4.19"]
[White "Gevorgyan, Maria"]
[Black "Fataliyeva, Ulviyya"]
[Result "1-0"]
[Annotator "ChessBase"]
[ECO "C22"]
[WhiteElo "2234"]
[BlackElo "2387"]
[PlyCount "105"]
[EventDate "2025.03.29"]
[EventType "swiss"]
[EventCountry "GRE"]
[SourceTitle "playchess.com"]
[Source "ChessBase"]
[SourceQuality "1"]
[TimeControl "40/5400+30:1800+30"]

1. e4 {[%emt 0:00:04]} e5 {[%emt 0:04:18]} 2. d4 {[%emt 0:00:06]} exd4 {[%emt 0:00:13]} 3. Qxd4 {[%emt 0:00:06]} Nc6 {[%emt 0:00:10]} 4. Qc4 {[%emt 0:00:06]} Nf6 {[%emt 0:00:38]} 5. Nc3 {[%emt 0:00:07]} Bb4 {[%emt 0:02:47]} 6. Bd2 {[%emt 0:00:36]} O-O {[%emt 0:00:41]} 7. O-O-O {[%emt 0:00:33]} Re8 {[%emt 0:00:45]} 8. f3 {[%emt 0:00:28]} d6 {[%emt 0:00:50]} 9. g4 {[%emt 0:01:45]} a5 {[%emt 0:05:00]} 10. a3 {[%emt 0:04:59]} Ne5 {[%emt 0:12:32]} 11. Qe2 {[%emt 0:01:19]} Be6 {[%emt 0:10:03]} 12. Qf2 {[%emt 0:15:02]} Nfd7 {[%emt 0:13:27]} 13. f4 {[%emt 0:08:51]} Nxg4 {[%emt 0:02:50]} 14. Qg3 {[%emt 0:04:13]} Ndf6 {[%emt 0:05:52]} 15. Bd3 {[%emt 0:12:10]} Bc5 {[%emt 0:07:09]} 16. Rf1 {[%emt 0:04:55]} Bd7 {[%emt 0:05:27]} 17. h3 {[%emt 0:02:32]} Nf2 {[%emt 0:01:52]} 18. Rxf2 {[%emt 0:00:24]} Bxf2 {[%emt 0:00:04]} 19. Qxf2 {[%emt 0:00:05]} b5 {[%emt 0:00:02]} 20. Qf3 {[%emt 0:13:55]} b4 {[%emt 0:02:33]} 21. Nd5 {[%emt 0:00:06]} bxa3 {[%emt 0:00:51]} 22. bxa3 {[%emt 0:01:04]} c6 {[%emt 0:01:25]} 23. Nc3 {[%emt 0:00:22]} Rb8 {[%emt 0:01:19]} 24. Nge2 {[%emt 0:01:42]} Qb6 {[%emt 0:00:32]} 25. Rg1 {[%emt 0:02:46]} Qc5 {[%emt 0:08:02]} 26. Kd1 {[%emt 0:00:27]} d5 {[%emt 0:02:00]} 27. e5 {[%emt 0:03:15]} Ne4 {[%emt 0:00:13]} 28. Nxe4 {[%emt 0:01:16]} dxe4 {[%emt 0:00:09]} 29. Qxe4 {[%emt 0:00:08]} g6 {[%emt 0:00:44]} 30. Qd4 {[%emt 0:03:35]} Qe7 {[%emt 0:00:18]} 31. Bxa5 {[%emt 0:02:15]} Bxh3 {[%emt 0:02:42]} 32. Bb4 {[%emt 0:01:14]} Qe6 {[%emt 0:01:51]} 33. Bd6 {[%emt 0:00:39]} Rbd8 {[%emt 0:01:15]} 34. Ng3 {[%emt 0:02:31]} c5 {[%emt 0:05:29]} 35. Qxc5 {[%emt 0:00:34]} Qg4+ {[%emt 0:00:14]} 36. Ne2 {[%emt 0:00:59]} Qf3 {[%emt 0:00:22]} 37. Rg3 {[%emt 0:00:38]} Qh5 {[%emt 0:00:53]} 38. Qg1 {[%emt 0:01:39]} Bc8 {[%emt 0:02:33]} 39. a4 {[%emt 0:03:39]} Bb7 {[%emt 0:00:05]} 40. Qf1 {[%emt 0:00:00]} Bc6 {[%emt 0:00:00]} 41. Qh3 {[%emt 0:05:00]} Qxh3 {[%emt 0:02:33]} 42. Rxh3 {[%emt 0:00:02]} Bxa4 {[%emt 0:00:28]} 43. Kd2 {[%emt 0:00:05]} f6 {[%emt 0:01:15]} 44. c4 {[%emt 0:00:43]} Bd7 {[%emt 0:00:39]} 45. Rh2 {[%emt 0:00:40]} Ra8 {[%emt 0:00:30]} 46. c5 {[%emt 0:01:22]} Ra2+ {[%emt 0:00:22]} 47. Ke3 {[%emt 0:00:33]} Rb2 {[%emt 0:00:55]} 48. Rh1 {[%emt 0:00:26]} g5 {[%emt 0:03:06]} 49. Bxh7+ {[%emt 0:02:25]} Kg7 {[%emt 0:00:46]} 50. Bd3 {[%emt 0:00:21]} Bg4 {[%emt 0:02:09]} 51. Ng3 {[%emt 0:06:42]} gxf4+ {[%emt 0:00:49]} 52. Kxf4 {[%emt 0:00:06]} Rb4+ {[%emt 0:00:07]} 53. Be4 {[%emt 0:00:55]} 1-0

[Event "European Womens-ch 2025"]
[Site "Rhodes"]
[Date "2025.04.03"]
[Round "4.20"]
[White "Lehaci, Miruna-Daria"]
[Black "Atalik, Ekaterina"]
[Result "1/2-1/2"]
[Annotator "RC"]
[ECO "B12"]
[WhiteElo "2212"]
[BlackElo "2375"]
[PlyCount "67"]
[EventDate "2025.03.29"]
[EventType "swiss"]
[EventCountry "GRE"]
[SourceTitle "playchess.com"]
[Source "ChessBase"]
[SourceQuality "1"]
[TimeControl "40/5400+30:1800+30"]

1. e4 {[%emt 0:00:04]} c6 {[%emt 0:00:14]} 2. d4 {[%emt 0:00:22]} d5 {[%emt 0:00:05]} 3. f3 {[%emt 0:00:05]} Qb6 {[%emt 0:00:58]} 4. Nc3 {[%emt 0:00:29]} e6 {[%emt 0:01:08]} 5. a3 {[%emt 0:00:33]} Nf6 {[%emt 0:00:24]} 6. e5 {[%emt 0:00:20]} Nfd7 {[%emt 0:00:05]} 7. f4 {[%emt 0:00:18]} c5 {[%emt 0:00:22]} 8. Nf3 {[%emt 0:00:09]} Nc6 {[%emt 0:00:53]} 9. dxc5 {[%emt 0:00:45]} Bxc5 {[%emt 0:01:08]} 10. Na4 {[%emt 0:01:13]} Qa5+ {[%emt 0:03:19]} 11. c3 {[%emt 0:00:18]} Be7 {[%emt 0:02:09]} 12. b4 {[%emt 0:00:46]} Qc7 {[%emt 0:00:47]} 13. Bd3 {[%emt 0:00:50]} f6 {[%emt 0:10:03]} 14. exf6 {[%emt 0:02:57]} Nxf6 {[%emt 0:03:20]} 15. O-O {[%emt 0:04:37]} O-O {[%emt 0:00:47]} 16. Qe2 {[%emt 0:03:21]} Bd6 {[%emt 0:08:36]} 17. Ng5 {[%emt 0:09:34]} Nd8 {[%emt 0:11:06]} 18. c4 {[%emt 0:03:09]} dxc4 {[%emt 0:07:27]} 19. Bxc4 {[%emt 0:00:34]} Bd7 {[%emt 0:02:53]} 20. Nb2 {[%emt 0:05:30]} b5 {[%emt 0:12:24]} 21. Bb3 {[%emt 0:03:55]} h6 {[%emt 0:09:17]} 22. Ne4 {[%emt 0:04:07]} Be7 {[%emt 0:03:20]} 23. Nd3 {[%emt 0:07:00]} Nxe4 {[%emt 0:04:39]} 24. Qxe4 {[%emt 0:00:06]} Bc6 {[%emt 0:02:32]} 25. Qe2 {[%emt 0:01:43]} Bf6 {[%emt 0:01:36]} 26. Bb2 {[%emt 0:02:27]} Bxb2 {[%emt 0:01:09]} 27. Qxb2 {[%emt 0:02:59]} Bd5 {[%emt 0:00:10]} 28. Bxd5 {[%emt 0:05:27]} exd5 {[%emt 0:00:10]} 29. Rac1 {[%emt 0:00:20]} Qd6 {[%emt 0:00:07]} 30. Ne5 {[%emt 0:04:11]} a5 {[%emt 0:02:36]} 31. f5 {[%emt 0:07:24]} axb4 {[%emt 0:00:21]} 32. axb4 {[%emt 0:00:14]} Qb6+ {[%emt 0:05:39]} 33. Kh1 {[%emt 0:02:13]} Qf6 {[%emt 0:00:07]} 34. Qc3 {[%emt 0:09:15]} 1/2-1/2

[Event "European Womens-ch 2025"]
[Site "Rhodes"]
[Date "2025.04.03"]
[Round "4.21"]
[White "Milliet, Sophie"]
[Black "Mgeladze, Kesaria"]
[Result "1-0"]
[Annotator "RC"]
[ECO "A70"]
[WhiteElo "2371"]
[BlackElo "2200"]
[PlyCount "65"]
[EventDate "2025.03.29"]
[EventType "swiss"]
[EventCountry "GRE"]
[SourceTitle "playchess.com"]
[Source "ChessBase"]
[SourceQuality "1"]
[TimeControl "40/5400+30:1800+30"]

1. d4 {[%emt 0:00:04]} Nf6 {[%emt 0:00:16]} 2. c4 {[%emt 0:00:03]} g6 {[%emt 0:00:07]} 3. Nc3 {[%emt 0:00:04]} Bg7 {[%emt 0:00:07]} 4. e4 {[%emt 0:00:04]} d6 {[%emt 0:00:07]} 5. h3 {[%emt 0:00:09]} O-O {[%emt 0:00:23]} 6. Be3 {[%emt 0:00:06]} c5 {[%emt 0:01:49]} 7. d5 {[%emt 0:00:42]} e6 {[%emt 0:01:24]} 8. Nf3 {[%emt 0:00:18]} exd5 {[%emt 0:00:47]} 9. cxd5 {[%emt 0:00:06]} Re8 {[%emt 0:00:45]} 10. Nd2 {[%emt 0:00:13]} a6 {[%emt 0:08:53]} 11. a4 {[%emt 0:00:06]} Nxe4 {[%emt 0:03:19]} 12. Ncxe4 {[%emt 0:00:12]} f5 {[%emt 0:00:07]} 13. Be2 {[%emt 0:00:09]} fxe4 {[%emt 0:00:52]} 14. Nc4 {[%emt 0:00:05]} Qf6 {[%emt 0:10:05]} 15. Nb6 {[%emt 0:10:45]} Ra7 {[%emt 0:01:06]} 16. a5 {[%emt 0:00:29]} Qxb2 {[%emt 0:16:33]} 17. Rb1 {[%emt 0:00:21]} Qc3+ {[%emt 0:00:48]} 18. Bd2 {[%emt 0:00:43]} Qd4 {[%emt 0:01:59]} 19. O-O {[%emt 0:08:28]} Bf5 {[%emt 0:14:25]} 20. Rb3 {[%emt 0:08:55]} Qf6 {[%emt 0:07:57]} 21. Qc1 {[%emt 0:02:30]} Nd7 {[%emt 0:13:14]} 22. g4 {[%emt 0:13:54]} Ne5 {[%emt 0:00:41]} 23. gxf5 {[%emt 0:03:20]} Qxf5 {[%emt 0:00:09]} 24. Rg3 {[%emt 0:01:15]} h5 {[%emt 0:03:18]} 25. h4 {[%emt 0:15:20]} Rf8 {[%emt 0:05:34]} 26. Qc2 {[%emt 0:01:26]} Bf6 {[%emt 0:01:23]} 27. Bg5 {[%emt 0:00:30]} Bxg5 {[%emt 0:00:22]} 28. Rxg5 {[%emt 0:01:49]} Qf4 {[%emt 0:00:06]} 29. Qc3 {[%emt 0:06:09]} e3 {[%emt 0:03:44]} 30. Qxe3 {[%emt 0:02:15]} Qxh4 {[%emt 0:00:08]} 31. f4 {[%emt 0:01:24]} Nf7 {[%emt 0:03:12]} 32. Qe6 {[%emt 0:00:56]} Kh8 {[%emt 0:01:11]} 33. Qf6+ {[%emt 0:00:13]} 1-0

[Event "European Womens-ch 2025"]
[Site "Rhodes"]
[Date "2025.04.03"]
[Round "4.22"]
[White "Kiolbasa, Oliwia"]
[Black "Dwilewicz, Katarzyna"]
[Result "1-0"]
[Annotator "RC"]
[ECO "B81"]
[WhiteElo "2360"]
[BlackElo "2203"]
[PlyCount "117"]
[EventDate "2025.03.29"]
[EventType "swiss"]
[EventCountry "GRE"]
[SourceTitle "playchess.com"]
[Source "ChessBase"]
[SourceQuality "1"]
[TimeControl "40/5400+30:1800+30"]

1. e4 {[%emt 0:00:11]} c5 {[%emt 0:00:12]} 2. Nf3 {[%emt 0:00:06]} d6 {[%emt 0:00:10]} 3. d4 {[%emt 0:05:32]} cxd4 {[%emt 0:00:10]} 4. Nxd4 {[%emt 0:00:05]} Nf6 {[%emt 0:00:06]} 5. Nc3 {[%emt 0:00:04]} a6 {[%emt 0:00:05]} 6. h3 {[%emt 0:02:26]} e6 {[%emt 0:00:09]} 7. g4 {[%emt 0:00:50]} Nfd7 {[%emt 0:00:35]} 8. g5 {[%emt 0:01:03]} Be7 {[%emt 0:00:34]} 9. Be3 {[%emt 0:01:48]} Nc6 {[%emt 0:11:32]} 10. h4 {[%emt 0:03:23]} Qc7 {[%emt 0:03:45]} 11. f4 {[%emt 0:02:09]} b5 {[%emt 0:03:09]} 12. Nxc6 {[%emt 0:11:03]} Qxc6 {[%emt 0:00:07]} 13. a3 {[%emt 0:00:05]} Bb7 {[%emt 0:06:56]} 14. Rh3 {[%emt 0:04:05]} h6 {[%emt 0:11:25]} 15. g6 {[%emt 0:09:11]} fxg6 {[%emt 0:01:24]} 16. Qg4 {[%emt 0:00:23]} Nf8 {[%emt 0:05:07]} 17. O-O-O {[%emt 0:03:47]} h5 {[%emt 0:10:10]} 18. Qg1 {[%emt 0:00:08]} Bf6 {[%emt 0:04:21]} 19. Bd4 {[%emt 0:02:54]} Bxd4 {[%emt 0:06:30]} 20. Qxd4 {[%emt 0:00:51]} Rd8 {[%emt 0:00:39]} 21. Rg3 {[%emt 0:10:00]} Rd7 {[%emt 0:08:58]} 22. Rg5 {[%emt 0:03:02]} e5 {[%emt 0:04:00]} 23. Qg1 {[%emt 0:01:00]} Ne6 {[%emt 0:03:22]} 24. Rxg6 {[%emt 0:01:08]} Nxf4 {[%emt 0:00:17]} 25. Rxg7 {[%emt 0:01:03]} Rf8 {[%emt 0:09:55]} 26. Nd5 {[%emt 0:05:02]} Rxg7 {[%emt 0:03:29]} 27. Qxg7 {[%emt 0:00:16]} Nxd5 {[%emt 0:01:13]} 28. exd5 {[%emt 0:07:40]} Qd7 {[%emt 0:00:16]} 29. Qg6+ {[%emt 0:00:08]} Kd8 {[%emt 0:00:43]} 30. Qxh5 {[%emt 0:09:05]} Qf5 {[%emt 0:00:41]} 31. Qxf5 {[%emt 0:06:37]} Rxf5 {[%emt 0:00:04]} 32. Be2 {[%emt 0:00:08]} Rf2 {[%emt 0:01:07]} 33. Kd2 {[%emt 0:05:33]} Rh2 {[%emt 0:00:33]} 34. h5 {[%emt 0:00:05]} Ke7 {[%emt 0:02:53]} 35. Ke3 {[%emt 0:00:22]} Rh3+ {[%emt 0:02:07]} 36. Bf3 {[%emt 0:02:42]} Kf6 {[%emt 0:00:45]} 37. Kf2 {[%emt 0:03:14]} e4 {[%emt 0:00:38]} 38. Bg4 {[%emt 0:00:48]} Rh2+ {[%emt 0:00:38]} 39. Kg3 {[%emt 0:00:30]} Rxc2 {[%emt 0:00:06]} 40. h6 {[%emt 0:00:00]} Rc7 {[%emt 0:00:00]} 41. Kf4 {[%emt 0:17:58]} Rh7 {[%emt 0:03:35]} 42. Rh1 {[%emt 0:01:54]} e3 {[%emt 0:10:07]} 43. Bf5 {[%emt 0:01:41]} Rh8 {[%emt 0:00:18]} 44. Be4 {[%emt 0:05:02]} e2 {[%emt 0:08:03]} 45. h7 {[%emt 0:00:04]} Kg7 {[%emt 0:06:54]} 46. Re1 {[%emt 0:00:44]} Rf8+ {[%emt 0:01:39]} 47. Ke3 {[%emt 0:00:21]} Re8 {[%emt 0:01:23]} 48. Kd4 {[%emt 0:00:16]} Kh8 {[%emt 0:01:09]} 49. Rxe2 {[%emt 0:00:06]} Re5 {[%emt 0:01:44]} 50. Rf2 {[%emt 0:02:54]} Re8 {[%emt 0:00:38]} 51. Rf7 {[%emt 0:00:33]} Bc8 {[%emt 0:01:04]} 52. Ke3 {[%emt 0:01:44]} a5 {[%emt 0:00:16]} 53. Kd4 {[%emt 0:00:52]} b4 {[%emt 0:00:12]} 54. Ra7 {[%emt 0:00:36]} bxa3 {[%emt 0:00:27]} 55. bxa3 {[%emt 0:00:05]} a4 {[%emt 0:00:39]} 56. Rxa4 {[%emt 0:00:35]} Bb7 {[%emt 0:00:39]} 57. Rb4 {[%emt 0:00:31]} Ra8 {[%emt 0:00:19]} 58. Rxb7 {[%emt 0:03:08]} Ra4+ {[%emt 0:00:10]} 59. Rb4 {[%emt 0:00:05]} 1-0